fUST/lending_fUST_20251110
["ID","MTS","AMOUNT","RATE_DAILY","PERIOD"]
[393480598,1762710638256,-1218.80183028,0.00018191,2]
[393480600,1762710638265,-1218.80183028,0.00018191,2]
[393480602,1762710638274,-1218.80183028,0.00018191,2]
[393480604,1762710638284,-1218.80183028,0.00018191,2]
[393480606,1762710638294,-1218.80183028,0.00018191,2]
[393480607,1762710638303,-1218.80183028,0.00018191,2]
[393480609,1762710638312,-1218.80183028,0.00018191,2]
[393480610,1762710638322,-1218.80183028,0.00018191,2]
[393480612,1762710638333,-1218.80183028,0.00018191,2]
[393480614,1762710638343,-1218.80183028,0.00018191,2]
[393480616,1762710638354,-1218.80183028,0.00018191,2]
[393480618,1762710638364,-1218.80183028,0.00018191,2]
[393480619,1762710638374,-1218.80183028,0.00018191,2]
[393480621,1762710638384,-1218.80183028,0.00018191,2]
[393480623,1762710638395,-1110.45923446,0.00018191,2]
[393480625,1762710638407,-108.34259582,0.00018191,2]
[393480626,1762710638417,-1218.80183028,0.00018191,2]
[393480627,1762710638427,-1218.80183028,0.00018191,2]
[393480628,1762710638437,-1218.80183028,0.00018191,2]
[393480629,1762710638447,-1218.80183028,0.00018191,2]
[393480630,1762710638459,-1218.80183028,0.00018191,2]
[393480631,1762710638469,-1218.80183028,0.00018191,2]
[393480633,1762710638480,-1218.80183028,0.00018191,2]
[393480635,1762710638489,-1218.80183028,0.00018191,2]
[393480637,1762710638499,-1218.80183028,0.00018191,2]
[393480638,1762710638509,-1218.80183028,0.00018191,2]
[393480639,1762710638520,-1218.80183028,0.00018191,2]
[393480640,1762710638530,-1218.80183028,0.00018191,2]
[393480641,1762710638540,-1218.80183028,0.00018191,2]
[393480642,1762710638549,-1218.80183028,0.00018191,2]
[393480643,1762710638559,-1218.80183028,0.00018191,2]
[393480644,1762710638568,-1218.80183028,0.00018191,2]
[393480645,1762710638579,-1218.80183028,0.00018191,2]
[393480646,1762710638589,-1218.80183028,0.00018191,2]
[393480647,1762710638599,-1218.80183028,0.00018191,2]
[393480648,1762710638609,-1218.80183028,0.00018191,2]
[393480649,1762710638619,-1218.80183028,0.00018191,2]
[393480650,1762710638628,-1218.80183028,0.00018191,2]
[393480651,1762710638638,-1218.80183028,0.00018191,2]
[393480652,1762710638648,-1218.80183028,0.00018191,2]
[393480653,1762710638657,-1218.80183028,0.00018191,2]
[393480654,1762710638666,-1218.80183028,0.00018191,2]
[393480655,1762710638676,-1218.80183028,0.00018191,2]
[393480656,1762710638686,-1218.80183028,0.00018191,2]
[393480657,1762710638696,-1218.80183028,0.00018191,2]
[393480658,1762710638706,-1218.80183028,0.00018191,2]
[393480659,1762710638716,-1218.80183028,0.00018191,2]
[393480660,1762710638726,-1218.80183028,0.00018191,2]
[393480661,1762710638736,-1218.80183028,0.00018191,2]
[393480662,1762710638746,-1218.80183028,0.00018191,2]
[393480663,1762710638756,-300.0,0.00018191,2]
[393480664,1762710638766,-300.0,0.00018191,2]
[393480665,1762710638776,-882.0,0.00018191,2]
[393480666,1762710638786,-300.0,0.00018191,2]
[393480667,1762710638796,-1200.0,0.00018191,2]
[393480668,1762710638805,-200.07940544,0.00018191,2]
[393480669,1762710638816,-1200.0,0.00018192,2]
[393480670,1762710638827,-50000.0,0.00018192,2]
[393480671,1762710638837,-150.0,0.00018192,2]
[393480672,1762710638847,-509.01211231,0.00018197,2]
[393480673,1762710638857,-1000.0,0.00018197,2]
[393480674,1762710638868,-1000.0,0.00018197,2]
[393480675,1762710638877,-1000.0,0.00018197,2]
[393480676,1762710638885,-1000.0,0.00018197,2]
[393480677,1762710638894,-1000.0,0.00018197,2]
[393480678,1762710638904,-1000.0,0.00018197,2]
[393480679,1762710638915,-1000.0,0.00018197,2]
[393480680,1762710638925,-1000.0,0.00018197,2]
[393480681,1762710638935,-1000.0,0.00018197,2]
[393480682,1762710638946,-644.62896264,0.00018197,2]
[393480683,1762710638957,-150.0,0.000182,2]
[393480684,1762710638967,-150.0,0.000182,2]
[393480685,1762710638977,-150.0,0.000182,2]
[393480686,1762710638987,-300.0,0.00018563,2]
[393480687,1762710638997,-300.0,0.00018563,2]
[393480688,1762710639007,-300.0,0.00018563,2]
[393480689,1762710639017,-300.0,0.00018563,2]
[393480690,1762710639027,-300.0,0.00018563,2]
[393480691,1762710639038,-300.0,0.00018563,2]
[393480692,1762710639051,-300.0,0.00018563,2]
[393480693,1762710639061,-300.0,0.00018563,2]
[393480694,1762710639071,-300.0,0.00018563,2]
[393480695,1762710639080,-300.0,0.00018563,2]
[393480696,1762710639091,-300.0,0.00018563,2]
[393480697,1762710639102,-300.0,0.00018563,2]
[393480698,1762710639111,-300.0,0.00018563,2]
[393480699,1762710639123,-300.0,0.00018563,2]
[393480700,1762710639133,-300.0,0.00018563,2]
[393480701,1762710639144,-600.0,0.00018933,2]
[393480702,1762710639154,-196.53689388,0.00019058,2]
[393480703,1762710639163,-500.0,0.00019178,2]
[393480704,1762710639173,-500.0,0.00019178,2]
[393480705,1762710639183,-500.0,0.00019178,2]
[393480706,1762710639192,-151.0,0.000192,2]
[393480707,1762710639202,-422.62812912,0.00019472,2]
[393480708,1762710639212,-2580.11460689,0.0001954,2]
[393480709,1762710639222,-3511.82265937,0.0001954,2]
[393480710,1762710639231,-4582.28354183,0.0001954,2]
[393480711,1762710639241,-1683.20513835,0.0001954,2]
[393480712,1762710639251,-2423.81539923,0.0001954,2]
[393480713,1762710639261,-3299.08207117,0.0001954,2]
[393480714,1762710639271,-4309.00515418,0.0001954,2]
[393480715,1762710639281,-5453.58464826,0.0001954,2]
[393480716,1762710639290,-39.14241527,0.0001954,2]
[393480717,1762710639303,-3055.72185216,0.0001954,2]
[393480718,1762710639315,-3631.22346543,0.0001954,2]
[393480719,1762710639325,-29026.529658,0.00019564,2]
[393480720,1762710639334,-500.0,0.00019573,2]
[393480721,1762710639344,-500.0,0.00019573,2]
[393480722,1762710639353,-500.0,0.00019573,2]
[393480723,1762710639363,-5385.84530755,0.00019581,2]
[393480724,1762710639372,-420.0,0.00019845,2]
[393480725,1762710639383,-420.0,0.00019845,2]
[393480726,1762710639393,-420.0,0.00019845,2]
[393480727,1762710639403,-1680.0,0.00019846,2]
[393480728,1762710639413,-1486.0,0.00019942,2]
[393480729,1762710639423,-394.39882635,0.00020121,2]
[393480730,1762710639433,-1000.0,0.00020121,2]
[393480731,1762710639443,-177.0,0.00020192,2]
[393480732,1762710639452,-1500.0,0.00020668,2]
[393480733,1762710639463,-720.0,0.00020827,2]
[393480734,1762710639472,-151.0,0.000209,4]
[393480735,1762710639483,-500.0,0.0002116,2]
[393480736,1762710639493,-500.0,0.0002116,2]
[393480737,1762710639503,-2000.0,0.00021216,2]
[393480738,1762710639513,-242.76962046,0.00021605,2]
[393480739,1762710639524,-378.94820444,0.00021605,2]
[393480740,1762710639535,-162.0,0.00021648,2]
[393480741,1762710639544,-481.0,0.00021648,2]
[393480742,1762710639555,-430.0,0.0002165,2]
[393480743,1762710639565,-173.98927384,0.00021696,2]
[393480744,1762710639575,-797.24115974,0.00021708,2]
[393480745,1762710639585,-171.817863,0.00021966,2]
[393480746,1762710639595,-13816.27,0.00022,7]
[393480747,1762710639605,-399.90919747,0.00022,7]
[393480748,1762710639615,-204.0,0.00022192,2]
[393480749,1762710639624,-495.54206945,0.00022325,2]
[393480750,1762710639634,-87.98794747,0.000224,2]
[393480751,1762710639751,-255.83661046,0.000224,2]
[393480752,1762710639763,-168.0,0.00022595,2]
[393480753,1762710639772,-151.0,0.000226,6]
[393480754,1762710639782,-42.82334314,0.00022732,2]
[393480757,1762710639794,-326.18667527,0.00022732,2]
[393480759,1762710639804,-664.21803314,0.00022732,2]
[393480761,1762710639813,-1180.83205891,0.00022732,2]
[393480762,1762710639823,-1845.05009204,0.00022732,2]
[393480763,1762710639833,-194.77958705,0.00022732,2]
[393480764,1762710639846,-2462.09254549,0.00022732,2]
[393480765,1762710639856,-3616.29818041,0.00022732,2]
[393480766,1762710639866,-4723.32823563,0.00022732,2]
[393480767,1762710639877,-5971.98433593,0.00022732,2]
[393480768,1762710639887,-196.73343078,0.00022822,2]
[393480769,1762710639896,-882.75173445,0.00022838,2]
[393480771,1762710639906,-371.12464047,0.00022838,2]
[393480783,1762710640328,-875.59919563,0.00022838,2]
[393480785,1762710640339,-1395.23028972,0.00022838,2]
[393480790,1762710640381,-889.05281199,0.00022838,2]
[393480792,1762710640390,-864.0,0.00022909,20]
[393480794,1762710640399,-168.0,0.0002341,2]
[393480796,1762710640409,-1264.7730369,0.00023453,2]
[393480798,1762710640419,-1457.0,0.00023556,2]
[393480800,1762710640429,-780.97426363,0.00023642,2]
[393480802,1762710640439,-202.34266099,0.00023642,2]
[393480804,1762710640448,-1457.0,0.00023659,2]
[393480806,1762710640458,-168.0,0.00023715,2]
[393480808,1762710640467,-168.0,0.0002372,2]
[393480810,1762710640476,-415.47067929,0.00023721,2]
[393480812,1762710640486,-168.0,0.00023753,2]
[393480815,1762710640496,-225.48317529,0.00023753,2]
[393480824,1762710640767,-5750.02068851,0.00023753,2]
[393480825,1762710640776,-168.0,0.00023766,2]
[393480826,1762710640785,-200.0,0.000238,3]
[393480827,1762710640794,-810.54803364,0.00023824,7]
[393480915,1762710642116,3123.93,0.0001818,2]
[393480947,1762710643267,-798.45196636,0.00023824,7]
[393480948,1762710643277,-222.87496364,0.00023824,7]
[393481590,1762710664355,278.142805,0.00013699,2]
[393481592,1762710708475,5000.0,0.0001818,2]
[393481593,1762710730033,150.0,0.000137,2]
[393481594,1762710731564,4999.99999997,0.0001818,2]
[393481595,1762710740454,150.0,0.000137,2]
[393481596,1762710751613,150.0,0.000137,2]
[393481597,1762710762974,150.0,0.000137,2]
[393481598,1762710774431,150.0,0.000137,2]
[393481599,1762710785168,150.0,0.000137,2]
[393481600,1762710802200,150.0,0.000137,2]
[393481601,1762710813702,150.0,0.000137,2]
[393481602,1762710824744,150.0,0.000137,2]
[393481603,1762710835416,150.0,0.000137,2]
[393481604,1762710847202,5000.0,0.0001818,2]
[393481605,1762710862491,150.0,0.000137,2]
[393481606,1762710862621,150.0,0.000137,2]
[393481607,1762710871353,5000.0,0.0001818,2]
[393481608,1762710873525,150.0,0.000137,2]
[393481609,1762710873900,150.0,0.000137,2]
[393481610,1762710885009,150.0,0.000137,2]
[393481611,1762710885159,150.0,0.000137,2]
[393481612,1762710886534,5000.0,0.0001818,2]
[393481613,1762710894254,5000.0,0.0001818,2]
[393481614,1762710895902,150.0,0.000137,2]
[393481615,1762710898366,150.0,0.000137,2]
[393481616,1762710908955,-150.0,0.0001819,2]
[393481617,1762710908987,-487.69093618,0.00018191,2]
[393481618,1762710909018,-500.0,0.00018195,2]
[393481619,1762710909046,-444.19988789,0.00018195,2]
[393481620,1762710909077,-150.0,0.000182,2]
[393481621,1762710909107,-278.142805,0.00020187,2]
[393481622,1762710909140,-177.0,0.0002019,2]
[393481623,1762710909169,-500.0,0.000214,2]
[393481624,1762710909197,-487.97674061,0.00021948,2]
[393481625,1762710909232,-1200.0,0.00022174,2]
[393481626,1762710909263,-300.0,0.00022174,2]
[393481627,1762710909291,-300.0,0.00022174,2]
[393481628,1762710909498,-1200.0,0.00022174,2]
[393481629,1762710909530,-300.0,0.00022174,2]
[393481630,1762710909561,-300.0,0.00022174,2]
[393481631,1762710909590,-300.0,0.00022174,2]
[393481632,1762710910222,5000.0,0.0001818,2]
[393481633,1762710918051,800.01,0.00022175,2]
[393481634,1762710918074,825.20091275,0.00022175,2]
[393481635,1762710922112,150.0,0.000137,2]
[393481636,1762710923284,150.0,0.000137,2]
[393481637,1762710923819,150.0,0.000137,2]
[393481638,1762710932462,150.0,0.000137,2]
[393481639,1762710933142,5000.0,0.00022175,2]
[393481640,1762710934749,150.0,0.000137,2]
[393481641,1762710938514,2658.85248573,0.0002209,2]
[393481642,1762710941400,150.0,0.000137,2]
[393481643,1762710943080,150.0,0.000137,2]
[393481644,1762710946025,150.0,0.000137,2]
[393481645,1762710948104,150.0,0.000137,2]
[393481646,1762710954747,150.0,0.000137,2]
[393481647,1762710957300,150.0,0.000137,2]
[393481648,1762710958966,150.0,0.000137,2]
[393481650,1762710977956,150.0,0.000137,2]
[393481651,1762710979901,150.0,0.000137,2]
[393481652,1762710981094,150.0,0.000137,2]
[393481653,1762710990849,150.0,0.000137,2]
[393481654,1762710991305,150.0,0.000137,2]
[393481655,1762710991874,150.0,0.000137,2]
[393481656,1762711001376,150.0,0.000137,2]
[393481657,1762711002695,150.0,0.000137,2]
[393481658,1762711003729,150.0,0.000137,2]
[393481659,1762711006336,159.0,9e-07,2]
[393481660,1762711007651,159.0,9e-07,2]
[393481661,1762711008692,159.0,9e-07,2]
[393481662,1762711010246,159.0,9e-07,2]
[393481663,1762711011405,159.0,9e-07,2]
[393481664,1762711012424,159.0,9e-07,2]
[393481665,1762711012923,150.0,0.000137,2]
[393481666,1762711013464,159.0,9e-07,2]
[393481667,1762711013637,150.0,0.000137,2]
[393481668,1762711014495,159.0,9e-07,2]
[393481669,1762711015591,159.0,9e-07,2]
[393481670,1762711015715,150.0,0.000137,2]
[393481671,1762711016648,159.0,9e-07,2]
[393481672,1762711024722,150.0,0.000137,2]
[393481673,1762711027323,150.0,0.000165,2]
[393481674,1762711036417,150.0,0.000137,2]
[393481675,1762711036555,150.0,0.000137,2]
[393481676,1762711038412,150.0,0.000137,2]
[393481677,1762711046693,150.0,0.000137,2]
[393481678,1762711048936,150.0,0.000137,2]
[393481679,1762711057238,150.0,0.000137,2]
[393481680,1762711059275,150.0,0.000137,2]
[393481681,1762711067660,150.0,0.000137,2]
[393481682,1762711148649,5000.0,0.0001818,2]
[393481683,1762711172055,4115.54903757,0.0001818,2]
[393481684,1762711257248,269.24004968,0.00018091,2]
[393481685,1762711283178,10407.50500749,0.0001962,3]
[393481686,1762711296608,-351.16642118,0.00018191,2]
[393481687,1762711303365,-148.83357882,0.00018191,2]
[393481688,1762711303386,-200.12893284,0.00018191,2]
[393481689,1762711309020,-280.60124478,0.00018191,2]
[393481690,1762711325800,-162.09123032,0.00018191,2]
[393481691,1762711327301,-201.59698138,0.00018191,2]
[393481695,1762711371286,-37.58161068,0.00018191,2]
[393481696,1762711371316,-150.0,0.00018546,2]
[393481697,1762711371344,-1707.6557411,0.00020305,2]
[393481698,1762711371374,-177.0,0.00020546,2]
[393481699,1762711371402,-206.21095527,0.00021493,2]
[393481700,1762711371432,-219.46167369,0.00021493,2]
[393481701,1762711371460,-509.26905,0.00021593,2]
[393481702,1762711371489,-300.0,0.00021594,2]
[393481703,1762711371516,-1123.0,0.00021594,2]
[393481704,1762711371544,-386.76324585,0.00021595,2]
[393481706,1762711374545,-696.17384252,0.00021595,2]
[393481707,1762711374573,-1237.64238671,0.00021595,2]
[393481708,1762711374603,-1933.81622923,0.00021595,2]
[393481709,1762711377164,-2784.69537009,0.00021595,2]
[393481710,1762711377192,-640.33945053,0.00021595,2]
[393481718,1762711383406,-253.5949005,0.00021593,2]
[393481719,1762711383434,-300.0,0.00021594,2]
[393481720,1762711383462,-3149.94035876,0.00021595,2]
[393481721,1762711386220,-150.0,0.000182,2]
[393481722,1762711386250,-4749.44045317,0.00021595,2]
[393481723,1762711387992,5000.0,0.0001818,2]
[393481724,1762711398252,-150.0,0.000182,2]
[393481725,1762711398282,-3930.35607321,0.00021379,2]
[393481726,1762711398312,-757.27284842,0.00021487,6]
[393481727,1762711398345,-123.62306308,0.00021595,2]
[393481728,1762711401344,-77.50603058,0.00021595,2]
[393481729,1762711401372,-3585.69892071,0.00021595,2]
[393481730,1762711410432,-2673.60009742,0.00021595,2]
[393481731,1762711410463,-681.5449277,0.00021604,5]
[393481732,1762711410491,-928.36271515,0.00021604,2]
[393481733,1762711419419,5000.0,0.00021369,2]
[393481735,1762711441989,3893.56402471,0.00021369,2]
[393481736,1762711444577,150.0,0.000182,2]
[393481737,1762711455609,150.0,0.000182,2]
[393481738,1762711464701,806.44597529,0.00021369,2]
[393481739,1762711464724,654.35752328,0.00021369,2]
[393481740,1762711466355,150.0,0.000182,2]
[393481741,1762711477387,150.0,0.000182,2]
[393481742,1762711487423,150.0,0.000182,2]
[393481743,1762711497817,1630.8179536,0.00021279,2]
[393481744,1762711498894,150.0,0.000182,2]
[393481745,1762711505145,150.0,0.000182,2]
[393481746,1762711510213,150.0,0.000182,2]
[393481747,1762711517123,150.0,0.000182,2]
[393481748,1762711520987,150.0,0.000182,2]
[393481749,1762711528788,150.0,0.000182,2]
[393481750,1762711531231,150.0,0.000182,2]
[393481751,1762711539464,150.0,0.000182,2]
[393481753,1762711577975,3713.4508606,0.00020524,2]
[393481754,1762711579844,1456.70748907,0.00020524,2]
[393481755,1762711608650,894.67617345,0.00021369,2]
[393481756,1762711608672,4105.32382655,0.00021369,2]
[393481757,1762711630794,5000.0,0.00021482,2]
[393481758,1762711653414,5000.0,0.00021482,2]
[393481759,1762711675613,0.01,0.00021482,2]
[393481760,1762711675637,4999.99,0.00021482,2]
[393481762,1762711697789,5000.0,0.00021482,2]
[393481763,1762711720539,0.02,0.00021482,2]
[393481764,1762711720563,4999.98,0.00021482,2]
[393481765,1762711742871,5000.0,0.00021482,2]
[393481766,1762711765196,5000.0,0.00021488,2]
[393481767,1762711787903,986.56765256,0.00021488,2]
[393481809,1762711832537,-1060.0,0.00021498,2]
[393481811,1762711832546,-100.08477039,0.00021498,2]
[393481813,1762711832558,-49.91522961,0.00021498,2]
[393481815,1762711832567,-279.0,0.00021504,2]
[393481817,1762711832581,-243.0,0.00021504,2]
[393481819,1762711832591,-378.94619802,0.00021505,2]
[393481821,1762711832600,-682.10315644,0.00021505,2]
[393481823,1762711832610,-1212.62783366,0.00021505,2]
[393481825,1762711832619,-1894.7309901,0.00021505,2]
[393481828,1762711832630,-2725.68421312,0.00021505,2]
[393481831,1762711832640,-730.35256398,0.00022069,2]
[393481834,1762711832649,-151.0,0.00022158,2]
[393481837,1762711832659,-170.61514281,0.00022158,2]
[393481840,1762711832669,-3658.33124679,0.00022159,2]
[393481843,1762711832678,-239.5803869,0.00022168,2]
[393481846,1762711832688,-681.17003184,0.00022171,5]
[393481849,1762711832698,-294.13528274,0.00022171,5]
[393481852,1762711832707,-500.0,0.00022173,2]
[393481855,1762711832718,-41668.5781021,0.00022175,2]
[393481858,1762711832729,-2326.49592504,0.00022464,2]
[393481861,1762711832738,-730.35256397,0.00022562,2]
[393481865,1762711832747,-290.85312148,0.0002263,2]
[393481868,1762711832757,-523.53561866,0.0002263,2]
[393481870,1762711832766,-930.72998872,0.0002263,2]
[393481871,1762711832775,-1452.81134177,0.0002263,2]
[393481874,1762711832785,-158.07015382,0.00022674,2]
[393481876,1762711832794,-13030.9827958,0.00022779,2]
[393481878,1762711832804,-768.3680985,0.00022836,2]
[393481880,1762711832813,-991.05145964,0.00022861,2]
[393481881,1762711832822,-1724.0,0.00022938,2]
[393481883,1762711832832,-730.35256397,0.00023056,2]
[393481885,1762711832841,-168.17297,0.00023244,2]
[393481886,1762711832851,-1308.41787,0.00023372,2]
[393481887,1762711832860,-628.0,0.00023411,2]
[393481888,1762711832870,-986.0,0.00023411,2]
[393481889,1762711832880,-2184.964,0.00023411,2]
[393481890,1762711832890,-240.86,0.00023433,2]
[393481891,1762711832899,-3914.01814111,0.00023469,2]
[393481892,1762711832909,-177.0,0.00023498,2]
[393481893,1762711832919,-168.17297,0.00023533,2]
[393481894,1762711832929,-730.35256397,0.00023549,2]
[393481895,1762711832938,-1488.0,0.00023569,2]
[393481896,1762711832949,-784.41869144,0.00023642,2]
[393481897,1762711832958,-277.22206923,0.00023656,2]
[393481898,1762711832968,-498.99972462,0.00023656,2]
[393481899,1762711832979,-887.11062155,0.00023656,2]
[393481900,1762711832988,-1386.11034617,0.00023656,2]
[393481901,1762711832998,-388.05843078,0.00023656,2]
[393481902,1762711833009,-265.20150286,0.00023656,2]
[393481903,1762711833019,-323.83305498,0.00023656,2]
[393481904,1762711833030,-370.09491997,0.00023656,2]
[393481905,1762711833041,-578.27331246,0.00023656,2]
[393481906,1762711833051,-474.82363347,0.00023656,2]
[393481907,1762711833061,-741.9119273,0.00023656,2]
[393481908,1762711833071,-451.4,0.00023715,4]
[393481909,1762711833081,-182.556,0.00023715,4]
[393481910,1762711833091,-413.0,0.00023752,2]
[393481911,1762711833100,-4425.0,0.00023752,2]
[393481912,1762711833111,-168.17297,0.00023823,2]
[393481913,1762711833120,-151.0,0.00023824,3]
[393481914,1762711833130,-500.0,0.00023824,7]
[393481915,1762711833140,-151.0,0.00023824,7]
[393481916,1762711833149,-1542.0,0.00023824,7]
[393481917,1762711833158,-159.0,0.00023824,3]
[393481918,1762711833169,-151.0,0.00023824,3]
[393481919,1762711833179,-151.0,0.00023824,3]
[393481920,1762711833189,-168.0,0.00023863,2]
[393481921,1762711833199,-1457.0,0.00023864,2]
[393481922,1762711833209,-500.0,0.00023879,7]
[393481923,1762711833219,-151.0,0.00023879,7]
[393481924,1762711833228,-1542.0,0.00023879,7]
[393481925,1762711833239,-1457.0,0.00023926,2]
[393481926,1762711833249,-399.90919747,0.00023928,7]
[393481927,1762711833259,-168.0,0.00023933,2]
[393481928,1762711833270,-500.0,0.00023934,7]
[393481929,1762711833280,-151.0,0.00023934,7]
[393481930,1762711833289,-1542.0,0.00023934,7]
[393481931,1762711833305,-168.0,0.00023957,2]
[393481932,1762711833323,-275.12503636,0.00023988,7]
[393481933,1762711833333,-151.0,0.00023988,7]
[393481934,1762711833343,-1542.0,0.00023988,7]
[393481935,1762711833351,-527.36162443,0.0002399,2]
[393481936,1762711833360,-730.35256397,0.00024042,2]
[393481937,1762711833369,-245.0,0.00024043,7]
[393481938,1762711833380,-1542.0,0.00024043,7]
[393481939,1762711833390,-168.0,0.00024057,2]
[393481940,1762711833403,-1542.0,0.00024098,7]
[393481941,1762711833413,-168.17297,0.00024112,2]
[393481942,1762711833422,-11495.59751995,0.00024142,2]
[393481943,1762711838183,-500.0,0.00022168,2]
[393481944,1762711838193,-500.0,0.00022168,2]
[393481945,1762711838205,-972.3635817,0.00022168,2]
[393481946,1762711838214,-500.0,0.00022168,2]
[393481947,1762711838224,-272.54615147,0.00022168,2]
[393481948,1762711838234,-500.0,0.00022168,2]
[393481949,1762711838243,-500.0,0.00022168,2]
[393481950,1762711838253,-500.0,0.00022168,2]
[393481951,1762711838262,-972.3635817,0.00022168,2]
[393481952,1762711838272,-500.0,0.00022168,2]
[393481953,1762711838281,-500.0,0.00022168,2]
[393481954,1762711838290,-500.0,0.00022168,2]
[393481955,1762711838300,-500.0,0.00022168,2]
[393481956,1762711838309,-500.0,0.00022168,2]
[393481957,1762711838318,-500.0,0.00022168,2]
[393481958,1762711838327,-972.3635817,0.00022168,2]
[393481959,1762711838337,-500.0,0.00022168,2]
[393481961,1762711838347,-500.0,0.00022168,2]
[393481963,1762711838357,-500.0,0.00022168,2]
[393481964,1762711838366,-500.0,0.00022168,2]
[393481966,1762711838376,-972.3635817,0.00022168,2]
[393481968,1762711838385,-500.0,0.00022168,2]
[393481970,1762711838395,-500.0,0.00022168,2]
[393481971,1762711838409,-500.0,0.00022168,2]
[393481973,1762711838418,-972.3635817,0.00022168,2]
[393481975,1762711838427,-500.0,0.00022168,2]
[393481977,1762711838437,-540.49474256,0.00022168,2]
[393481979,1762711838448,-972.3635817,0.00022168,2]
[393481981,1762711838458,-500.0,0.00022168,2]
[393481983,1762711838468,-500.0,0.00022168,2]
[393481984,1762711838479,-500.0,0.00022168,2]
[393481986,1762711838489,-500.0,0.00022168,2]
[393481988,1762711838499,-972.3635817,0.00022168,2]
[393481990,1762711838509,-500.0,0.00022168,2]
[393481992,1762711838519,-500.0,0.00022168,2]
[393481994,1762711838528,-500.0,0.00022168,2]
[393481995,1762711838538,-500.0,0.00022168,2]
[393481997,1762711838548,-972.3635817,0.00022168,2]
[393481999,1762711838558,-500.0,0.00022168,2]
[393482001,1762711838569,-500.0,0.00022168,2]
[393482003,1762711838579,-972.3635817,0.00022168,2]
[393482004,1762711838589,-500.0,0.00022168,2]
[393482006,1762711838599,-251.00911261,0.00022168,2]
[393482008,1762711838609,-500.0,0.00022168,2]
[393482010,1762711838620,-972.3635817,0.00022168,2]
[393482012,1762711838630,-500.0,0.00022168,2]
[393482014,1762711838639,-500.0,0.00022168,2]
[393482016,1762711838649,-500.0,0.00022168,2]
[393482018,1762711838659,-972.3635817,0.00022168,2]
[393482019,1762711838669,-500.0,0.00022168,2]
[393482021,1762711838680,-500.0,0.00022168,2]
[393482023,1762711838690,-972.3635817,0.00022168,2]
[393482025,1762711838700,-479.96061982,0.00022168,2]
[393482028,1762711838718,-20.03938018,0.00022168,2]
[393482030,1762711838727,-500.0,0.00022168,2]
[393482031,1762711838737,-350.38981342,0.00022168,2]
[393482109,1762711840510,-3e-08,0.00022168,2]
[393482159,1762711843533,-149.61018655,0.00022168,2]
[393482160,1762711843543,-174.28464403,0.00022168,2]
[393482432,1762711852872,-798.07893767,0.00022168,2]
[393482433,1762711852884,-500.0,0.00022168,2]
[393482435,1762711852896,-972.3635817,0.00022168,2]
[393482437,1762711852908,-500.0,0.00022168,2]
[393482440,1762711852919,-500.0,0.00022168,2]
[393482441,1762711852933,-972.3635817,0.00022168,2]
[393482442,1762711852944,-972.3635817,0.00022168,2]
[393482443,1762711852955,-500.0,0.00022168,2]
[393482444,1762711852967,-500.0,0.00022168,2]
[393482445,1762711852979,-972.3635817,0.00022168,2]
[393482446,1762711852990,-500.0,0.00022168,2]
[393482448,1762711853000,-972.3635817,0.00022168,2]
[393482449,1762711853012,-599.27320666,0.00022168,2]
[393482451,1762711853022,-500.0,0.00022168,2]